[Event "GrandPrix_29.05"]
[Site "Chess.com"]
[Date "2020.05.29"]
[Round "4"]
[White "Kildepiotr"]
[Black "Onischuk_V"]
[Result "1/2-1/2"]
[WhiteElo "2222"]
[BlackElo "2291"]
[TimeControl "600+2"]
[EndTime "11:00:21 PDT"]
[Termination "Game drawn by repetition"]

1. Nf3 {[%clk 0:10:01.9]} 1... g6 {[%clk 0:10:00.8]} 2. g3 {[%clk 0:10:02.9]}
2... Bg7 {[%clk 0:10:02.3]} 3. d4 {[%clk 0:10:04.3]} 3... d6 {[%clk 0:10:03.7]}
4. Bg2 {[%clk 0:10:05.1]} 4... Nf6 {[%clk 0:10:05.3]} 5. O-O {[%clk 0:10:06.1]}
5... O-O {[%clk 0:10:06.8]} 6. Nbd2 {[%clk 0:10:07.7]} 6... Nc6 {[%clk 0:10:07]}
7. e4 {[%clk 0:10:08.3]} 7... e5 {[%clk 0:10:08.2]} 8. dxe5 {[%clk 0:10:09.7]}
8... dxe5 {[%clk 0:10:07.3]} 9. c3 {[%clk 0:10:10.5]} 9... a5 {[%clk 0:10:07.8]}
10. Qe2 {[%clk 0:10:07.2]} 10... b6 {[%clk 0:10:06.2]} 11. Rd1 {[%clk
0:10:06.2]} 11... Ba6 {[%clk 0:10:06.6]} 12. Qe1 {[%clk 0:10:07.3]} 12... Qe7
{[%clk 0:10:05.4]} 13. Bf1 {[%clk 0:10:07.4]} 13... Bb7 {[%clk 0:10:03.2]} 14.
Nc4 {[%clk 0:10:02.4]} 14... Rad8 {[%clk 0:10:01.4]} 15. Bg5 {[%clk 0:10:02.7]}
15... h6 {[%clk 0:10:01.5]} 16. Bxf6 {[%clk 0:10:03.3]} 16... Qxf6 {[%clk
0:09:57.7]} 17. Nfd2 {[%clk 0:10:03]} 17... h5 {[%clk 0:09:52.1]} 18. Ne3 {[%clk
0:09:58.4]} 18... Ne7 {[%clk 0:09:53.2]} 19. Bg2 {[%clk 0:09:49.8]} 19... Qe6
{[%clk 0:09:44.3]} 20. Ndc4 {[%clk 0:09:46.9]} 20... a4 {[%clk 0:09:25.1]} 21.
b4 {[%clk 0:09:38.8]} 21... Bh6 {[%clk 0:09:07.4]} 22. a3 {[%clk 0:09:28.8]}
22... Ba6 {[%clk 0:08:48.4]} 23. Bf1 {[%clk 0:09:22.9]} 23... Bb7 {[%clk
0:08:36.4]} 24. Bg2 {[%clk 0:09:10.8]} 24... h4 {[%clk 0:08:28.6]} 25. Rxd8
{[%clk 0:08:58.1]} 25... Rxd8 {[%clk 0:08:28.6]} 26. Rd1 {[%clk 0:09:00]} 26...
Re8 {[%clk 0:06:28]} 27. Nd5 {[%clk 0:08:41.5]} 27... Nxd5 {[%clk 0:05:25]} 28.
exd5 {[%clk 0:08:41.7]} 28... Qd7 {[%clk 0:05:26.3]} 29. Qe4 {[%clk 0:08:21.5]}
29... h3 {[%clk 0:05:17.2]} 30. Qh4 {[%clk 0:08:02.4]} 30... hxg2 {[%clk
0:05:06.1]} 31. Qxh6 {[%clk 0:08:02.7]} 31... Ba6 {[%clk 0:04:21.5]} 32. Ne3
{[%clk 0:08:00.4]} 32... Be2 {[%clk 0:04:22.2]} 33. Rd2 {[%clk 0:07:54.9]} 33...
Bf3 {[%clk 0:04:23.2]} 34. Nxg2 {[%clk 0:07:45.7]} 34... Qf5 {[%clk 0:04:21.3]}
35. Qe3 {[%clk 0:07:13.7]} 35... Qb1+ {[%clk 0:04:15.6]} 36. Qe1 {[%clk
0:07:13.1]} 36... Qb3 {[%clk 0:04:11.9]} 37. Qc1 {[%clk 0:06:44.4]} 37... Bxd5
{[%clk 0:04:02.8]} 38. Ne3 {[%clk 0:06:29.7]} 38... Bf3 {[%clk 0:04:03.5]} 39.
c4 {[%clk 0:06:30.1]} 39... c6 {[%clk 0:03:39]} 40. Kf1 {[%clk 0:06:21.4]} 40...
b5 {[%clk 0:03:35.7]} 41. c5 {[%clk 0:05:51]} 41... Qe6 {[%clk 0:03:29.8]} 42.
Kg1 {[%clk 0:05:50]} 42... Kg7 {[%clk 0:03:22.9]} 43. Rd6 {[%clk 0:05:48]} 43...
Qh3 {[%clk 0:03:23.3]} 44. Qf1 {[%clk 0:05:48.2]} 44... Qh5 {[%clk 0:03:17.5]}
45. h3 {[%clk 0:05:40.7]} 45... Rh8 {[%clk 0:02:50.2]} 46. Kh2 {[%clk
0:05:40.8]} 46... Qg5 {[%clk 0:02:50.9]} 47. Rd3 {[%clk 0:04:56.9]} 47... Qf6
{[%clk 0:02:43.2]} 48. Rd6 {[%clk 0:04:50.8]} 48... Qe7 {[%clk 0:02:43.9]} 49.
Qd3 {[%clk 0:04:28]} 49... Qg5 {[%clk 0:02:34.2]} 50. Qf1 {[%clk 0:04:28.3]}
50... f5 {[%clk 0:01:37.4]} 51. Ng2 {[%clk 0:04:11.9]} 51... f4 {[%clk
0:00:52.5]} 52. Rd7+ {[%clk 0:04:00]} 52... Kf8 {[%clk 0:00:37.1]} 53. Qd3
{[%clk 0:03:59.4]} 53... Bd5 {[%clk 0:00:26]} 54. Nh4 {[%clk 0:03:49]} 54...
fxg3+ {[%clk 0:00:16.5]} 55. fxg3 {[%clk 0:03:43.7]} 55... Rxh4 {[%clk
0:00:13.2]} 56. Rxd5 {[%clk 0:03:36.4]} 56... cxd5 {[%clk 0:00:10.4]} 57. gxh4
{[%clk 0:03:34.6]} 57... Qf4+ {[%clk 0:00:10.2]} 58. Kg2 {[%clk 0:03:33.9]}
58... d4 {[%clk 0:00:07.7]} 59. Qxg6 {[%clk 0:03:26.6]} 59... Qd2+ {[%clk
0:00:05.6]} 60. Kg3 {[%clk 0:03:21.4]} 60... Qe3+ {[%clk 0:00:05.7]} 61. Kg2
{[%clk 0:03:13]} 61... d3 {[%clk 0:00:06.7]} 62. Qf6+ {[%clk 0:03:09.7]} 62...
Ke8 {[%clk 0:00:05.9]} 63. Qe6+ {[%clk 0:03:10]} 63... Kd8 {[%clk 0:00:05.2]}
64. Qd6+ {[%clk 0:02:32.6]} 64... Ke8 {[%clk 0:00:06.2]} 65. Qe6+ {[%clk
0:02:33.2]} 65... Kf8 {[%clk 0:00:07.5]} 66. Qf6+ {[%clk 0:02:33.7]} 66... Kg8
{[%clk 0:00:08.2]} 67. Qg6+ {[%clk 0:02:34.3]} 67... Kh8 {[%clk 0:00:07.8]} 68.
Qf6+ {[%clk 0:02:20.6]} 68... Kh7 {[%clk 0:00:07.8]} 69. Qf7+ {[%clk 0:02:19.3]}
69... Kh6 {[%clk 0:00:08.6]} 70. Qf6+ {[%clk 0:02:13.4]} 70... Kh5 {[%clk
0:00:07.5]} 71. Qf5+ {[%clk 0:02:11.6]} 71... Kh6 {[%clk 0:00:08.8]} 72. Qf6+
{[%clk 0:02:12.6]} 72... Kh7 {[%clk 0:00:09.8]} 73. Qf7+ {[%clk 0:02:12.8]}
73... Kh8 {[%clk 0:00:10.9]} 74. Qf8+ {[%clk 0:02:13.7]} 74... Kh7 {[%clk
0:00:12.1]} 75. Qf7+ {[%clk 0:02:14.7]} 1/2-1/2

[Event "GrandPrix_29.05"]
[Site "Chess.com"]
[Date "2020.05.29"]
[Round "4"]
[White "ZoranRunic1"]
[Black "Vnebo"]
[Result "1-0"]
[WhiteElo "2109"]
[BlackElo "2056"]
[TimeControl "600+2"]
[EndTime "11:00:22 PDT"]
[Termination "ZoranRunic1 won by resignation"]

1. e4 {[%clk 0:10:01.9]} 1... c5 {[%clk 0:09:59.9]} 2. Nf3 {[%clk 0:10:01.3]}
2... d6 {[%clk 0:10:00.3]} 3. d4 {[%clk 0:10:01.3]} 3... cxd4 {[%clk 0:10:02.2]}
4. Nxd4 {[%clk 0:10:02.3]} 4... Nf6 {[%clk 0:10:02.7]} 5. Nc3 {[%clk 0:10:02.9]}
5... Nc6 {[%clk 0:10:02.7]} 6. Bc4 {[%clk 0:10:02.6]} 6... Bd7 {[%clk
0:09:46.4]} 7. Bb3 {[%clk 0:09:53.4]} 7... g6 {[%clk 0:09:33.6]} 8. f3 {[%clk
0:09:53.2]} 8... Bg7 {[%clk 0:09:28.8]} 9. Be3 {[%clk 0:09:53.7]} 9... O-O
{[%clk 0:09:29]} 10. Qd2 {[%clk 0:09:54.6]} 10... Rc8 {[%clk 0:09:27.5]} 11.
O-O-O {[%clk 0:09:53.4]} 11... Nxd4 {[%clk 0:09:24.2]} 12. Bxd4 {[%clk
0:09:53.1]} 12... b5 {[%clk 0:09:24]} 13. Nd5 {[%clk 0:09:24.2]} 13... Nxd5
{[%clk 0:09:16.9]} 14. Bxg7 {[%clk 0:09:19.1]} 14... Kxg7 {[%clk 0:09:15.2]} 15.
exd5 {[%clk 0:08:53.6]} 15... a5 {[%clk 0:09:11.9]} 16. a3 {[%clk 0:08:53.5]}
16... Kg8 {[%clk 0:08:51.9]} 17. g4 {[%clk 0:08:45.7]} 17... Rc5 {[%clk
0:08:38]} 18. h4 {[%clk 0:08:35.7]} 18... b4 {[%clk 0:08:28.7]} 19. axb4 {[%clk
0:08:04.4]} 19... axb4 {[%clk 0:08:28.3]} 20. h5 {[%clk 0:07:18.3]} 20... Qa5
{[%clk 0:07:43.3]} 21. Qh6 {[%clk 0:07:03.1]} 21... Qa1+ {[%clk 0:04:38.9]} 22.
Kd2 {[%clk 0:07:00.3]} 22... Qxb2 {[%clk 0:04:40.3]} 23. hxg6 {[%clk 0:06:54.5]}
23... Rxc2+ {[%clk 0:04:16.1]} 24. Bxc2 {[%clk 0:06:48]} 24... Qc3+ {[%clk
0:04:10]} 25. Ke2 {[%clk 0:06:06.7]} 25... Qxc2+ {[%clk 0:04:04.8]} 26. Rd2
{[%clk 0:06:00.9]} 26... Qxg6 {[%clk 0:03:21.9]} 27. Qf4 {[%clk 0:05:25.6]}
27... b3 {[%clk 0:02:33.6]} 28. Rh6 {[%clk 0:04:54.2]} 28... Qg7 {[%clk
0:01:58.4]} 29. Rh5 {[%clk 0:04:29.5]} 29... b2 {[%clk 0:01:55.2]} 30. Qb4
{[%clk 0:03:12.1]} 30... Bxg4 {[%clk 0:01:15.3]} 31. Rh4 {[%clk 0:02:33.2]}
31... Bf5 {[%clk 0:01:04.4]} 32. Qxb2 {[%clk 0:02:16.5]} 32... Qg2+ {[%clk
0:00:57.3]} 33. Ke3 {[%clk 0:02:14.6]} 33... Qg1+ {[%clk 0:00:31.6]} 34. Kf4
{[%clk 0:02:02.4]} 34... e5+ {[%clk 0:00:25]} 35. dxe6 {[%clk 0:02:02]} 35...
fxe6 {[%clk 0:00:25.6]} 36. Rg2+ {[%clk 0:02:01.6]} 36... Bg6+ {[%clk
0:00:25.6]} 37. Kg3 {[%clk 0:01:55.7]} 37... Qe1+ {[%clk 0:00:25.7]} 38. Qf2
{[%clk 0:01:52.3]} 38... Qe5+ {[%clk 0:00:26.1]} 39. f4 {[%clk 0:01:51.4]} 39...
Qf6 {[%clk 0:00:20.2]} 40. Kh2 {[%clk 0:01:47]} 40... Rf7 {[%clk 0:00:14.5]} 41.
Rhg4 {[%clk 0:01:42.9]} 41... Kh8 {[%clk 0:00:13.4]} 42. Qb6 {[%clk 0:01:40.1]}
42... d5 {[%clk 0:00:11.1]} 43. Qb8+ {[%clk 0:01:23.3]} 43... Rf8 {[%clk
0:00:11.8]} 44. Qd6 {[%clk 0:01:20.4]} 44... Bf5 {[%clk 0:00:08.8]} 45. R4g3
{[%clk 0:01:16.4]} 45... Rc8 {[%clk 0:00:09.1]} 46. Rg5 {[%clk 0:00:52.5]} 46...
Qh6+ {[%clk 0:00:07.6]} 47. Kg1 {[%clk 0:00:50.9]} 47... Rc1+ {[%clk 0:00:06.9]}
48. Kf2 {[%clk 0:00:51.6]} 48... Rc2+ {[%clk 0:00:07.4]} 49. Ke3 {[%clk
0:00:39.9]} 49... Rc3+ {[%clk 0:00:06.4]} 50. Kd2 {[%clk 0:00:38.4]} 50... Rc8
{[%clk 0:00:05.2]} 51. Qe5+ {[%clk 0:00:38]} 1-0

[Event "GrandPrix_29.05"]
[Site "Chess.com"]
[Date "2020.05.29"]
[Round "4"]
[White "crazyboy26"]
[Black "TheJoker64"]
[Result "1/2-1/2"]
[WhiteElo "2320"]
[BlackElo "2443"]
[TimeControl "600+2"]
[EndTime "11:00:23 PDT"]
[Termination "Game drawn by repetition"]

1. e4 {[%clk 0:10:01.9]} 1... c5 {[%clk 0:10:00.4]} 2. Nf3 {[%clk 0:10:02.1]}
2... Nc6 {[%clk 0:09:59.2]} 3. Bb5 {[%clk 0:09:58.7]} 3... Nf6 {[%clk
0:09:51.2]} 4. Bxc6 {[%clk 0:09:38.2]} 4... dxc6 {[%clk 0:09:50.4]} 5. d3 {[%clk
0:09:39.5]} 5... Qc7 {[%clk 0:09:49.9]} 6. Nbd2 {[%clk 0:09:18.7]} 6... e5
{[%clk 0:09:30.8]} 7. Nc4 {[%clk 0:09:12.7]} 7... b5 {[%clk 0:08:48.6]} 8. Ne3
{[%clk 0:08:16.5]} 8... Be6 {[%clk 0:08:31.8]} 9. Ng5 {[%clk 0:08:10.3]} 9...
Bd7 {[%clk 0:08:24.7]} 10. a4 {[%clk 0:07:57]} 10... h6 {[%clk 0:08:14.8]} 11.
Nf3 {[%clk 0:07:56.3]} 11... Be7 {[%clk 0:07:47.1]} 12. b3 {[%clk 0:07:48.8]}
12... Be6 {[%clk 0:07:19.6]} 13. Bb2 {[%clk 0:07:28]} 13... Nd7 {[%clk
0:07:19.2]} 14. O-O {[%clk 0:07:26.2]} 14... O-O {[%clk 0:07:13.9]} 15. axb5
{[%clk 0:07:06.4]} 15... cxb5 {[%clk 0:07:14.1]} 16. Ra6 {[%clk 0:07:05.4]}
16... Bf6 {[%clk 0:06:52.4]} 17. Qa1 {[%clk 0:06:53.2]} 17... Qb7 {[%clk
0:05:35.2]} 18. Qa2 {[%clk 0:06:12.6]} 18... Nb8 {[%clk 0:05:24.1]} 19. Rxe6
{[%clk 0:05:17]} 19... fxe6 {[%clk 0:05:23.7]} 20. Nxe5 {[%clk 0:04:54]} 20...
Nc6 {[%clk 0:03:55.1]} 21. N3g4 {[%clk 0:04:13.5]} 21... Nxe5 {[%clk 0:03:46.6]}
22. Nxe5 {[%clk 0:04:14.1]} 22... a5 {[%clk 0:03:35.1]} 23. b4 {[%clk
0:03:44.7]} 23... Bxe5 {[%clk 0:03:03.5]} 24. Qxe6+ {[%clk 0:03:40.8]} 24... Qf7
{[%clk 0:03:00.2]} 25. Qxe5 {[%clk 0:03:40.6]} 25... cxb4 {[%clk 0:03:00.2]} 26.
Qxb5 {[%clk 0:03:30]} 26... Rfb8 {[%clk 0:02:52.7]} 27. Qa4 {[%clk 0:02:59]}
27... Qe8 {[%clk 0:02:47.9]} 28. Qa1 {[%clk 0:02:43.4]} 28... Qf7 {[%clk
0:02:40.6]} 29. f4 {[%clk 0:00:20]} 29... a4 {[%clk 0:02:39.4]} 30. Rf3 {[%clk
0:00:19.6]} 30... a3 {[%clk 0:02:19.4]} 31. Be5 {[%clk 0:00:19.4]} 31... Rb6
{[%clk 0:00:56.1]} 32. h3 {[%clk 0:00:12]} 32... b3 {[%clk 0:00:47.3]} 33. cxb3
{[%clk 0:00:12]} 33... Qxb3 {[%clk 0:00:45.9]} 34. Kh2 {[%clk 0:00:12.6]} 34...
a2 {[%clk 0:00:35.7]} 35. Rg3 {[%clk 0:00:06.6]} 35... g6 {[%clk 0:00:26]} 36.
f5 {[%clk 0:00:06.7]} 36... g5 {[%clk 0:00:17.2]} 37. h4 {[%clk 0:00:07.5]}
37... Qb1 {[%clk 0:00:09.1]} 38. Qd4 {[%clk 0:00:08.1]} 38... a1=Q {[%clk
0:00:07.2]} 39. Qd5+ {[%clk 0:00:08.7]} 39... Kf8 {[%clk 0:00:07.2]} 40. Bxa1
{[%clk 0:00:08.4]} 40... Rxa1 {[%clk 0:00:07]} 41. Qd8+ {[%clk 0:00:08.2]} 41...
Kf7 {[%clk 0:00:07.3]} 42. Qd7+ {[%clk 0:00:08.4]} 42... Kf8 {[%clk 0:00:07.6]}
43. Qd8+ {[%clk 0:00:08.9]} 43... Kf7 {[%clk 0:00:04.5]} 44. Qd7+ {[%clk
0:00:07.2]} 44... Kf8 {[%clk 0:00:05.8]} 45. Qd8+ {[%clk 0:00:07.8]} 1/2-1/2

[Event "GrandPrix_29.05"]
[Site "Chess.com"]
[Date "2020.05.29"]
[Round "4"]
[White "Angry_Twin"]
[Black "SuperFineHipster"]
[Result "1-0"]
[WhiteElo "2436"]
[BlackElo "2123"]
[TimeControl "600+2"]
[EndTime "11:00:27 PDT"]
[Termination "Angry_Twin won by checkmate"]

1. e4 {[%clk 0:09:59.5]} 1... c5 {[%clk 0:09:58.2]} 2. Nf3 {[%clk 0:09:59.3]}
2... d6 {[%clk 0:09:59.6]} 3. d4 {[%clk 0:09:59.1]} 3... cxd4 {[%clk 0:10:01.5]}
4. Nxd4 {[%clk 0:10:00.8]} 4... Nf6 {[%clk 0:10:03]} 5. Nc3 {[%clk 0:10:02.4]}
5... a6 {[%clk 0:10:02]} 6. Be3 {[%clk 0:10:02.9]} 6... e5 {[%clk 0:09:56.6]} 7.
Nb3 {[%clk 0:10:03.5]} 7... Be6 {[%clk 0:09:56.9]} 8. f3 {[%clk 0:10:04.7]} 8...
h5 {[%clk 0:09:57.8]} 9. Qd2 {[%clk 0:10:05.6]} 9... Nbd7 {[%clk 0:09:57.1]} 10.
Nd5 {[%clk 0:10:06.8]} 10... Bxd5 {[%clk 0:09:56.8]} 11. exd5 {[%clk 0:10:08.7]}
11... Rc8 {[%clk 0:09:46.5]} 12. Be2 {[%clk 0:10:07.8]} 12... Nb6 {[%clk
0:09:42.1]} 13. Na5 {[%clk 0:08:37.1]} 13... Nbxd5 {[%clk 0:07:59.2]} 14. Nxb7
{[%clk 0:08:33.9]} 14... Qc7 {[%clk 0:06:27.5]} 15. Bxa6 {[%clk 0:08:31.4]}
15... Ra8 {[%clk 0:06:16.4]} 16. Bb5+ {[%clk 0:07:16.8]} 16... Ke7 {[%clk
0:06:15.6]} 17. Nxd6 {[%clk 0:07:12.4]} 17... Qxd6 {[%clk 0:06:09.3]} 18. Bf2
{[%clk 0:06:10.9]} 18... Qb4 {[%clk 0:04:27.5]} 19. c4 {[%clk 0:05:27.6]} 19...
Qxd2+ {[%clk 0:04:21]} 20. Kxd2 {[%clk 0:05:29.5]} 20... Nc7 {[%clk 0:03:24.6]}
21. Bc6 {[%clk 0:05:24.7]} 21... Rc8 {[%clk 0:03:12.9]} 22. Rhe1 {[%clk
0:03:50.2]} 22... g6 {[%clk 0:02:46.6]} 23. Bg3 {[%clk 0:02:22.6]} 23... Ne6
{[%clk 0:02:37.1]} 24. Bb5 {[%clk 0:02:22.5]} 24... Bh6+ {[%clk 0:02:34.6]} 25.
Ke2 {[%clk 0:01:50.4]} 25... e4 {[%clk 0:02:25]} 26. Kf1 {[%clk 0:01:46.6]}
26... exf3 {[%clk 0:02:07.9]} 27. gxf3 {[%clk 0:01:46.2]} 27... Rhd8 {[%clk
0:02:09]} 28. a4 {[%clk 0:01:34.4]} 28... Rd3 {[%clk 0:01:40.1]} 29. a5 {[%clk
0:01:12.1]} 29... Rxf3+ {[%clk 0:01:39.2]} 30. Kg2 {[%clk 0:01:13.5]} 30... Rb3
{[%clk 0:01:40.6]} 31. a6 {[%clk 0:01:14.5]} 31... Rxb2+ {[%clk 0:01:38.6]} 32.
Kh1 {[%clk 0:01:15.4]} 32... h4 {[%clk 0:01:29.4]} 33. Be5 {[%clk 0:01:11]}
33... Rf2 {[%clk 0:01:21.8]} 34. a7 {[%clk 0:01:10.8]} 34... Ng4 {[%clk
0:01:20.7]} 35. Bb8 {[%clk 0:00:26.5]} 35... Bf4 {[%clk 0:01:05.1]} 36. a8=Q
{[%clk 0:00:26.8]} 36... Rxb8 {[%clk 0:00:57.2]} 37. Qa7+ {[%clk 0:00:19.5]}
37... Kf6 {[%clk 0:00:57.4]} 38. Rf1 {[%clk 0:00:15.5]} 38... Rxh2+ {[%clk
0:00:47.6]} 39. Kg1 {[%clk 0:00:16.8]} 39... Rd8 {[%clk 0:00:45.1]} 40. Ra2
{[%clk 0:00:13.1]} 40... Rh3 {[%clk 0:00:33.8]} 41. Rg2 {[%clk 0:00:10]} 41...
Kg5 {[%clk 0:00:29.6]} 42. Re1 {[%clk 0:00:09.7]} 42... Rdd3 {[%clk 0:00:21.4]}
43. Qxf7 {[%clk 0:00:08.6]} 43... Be3+ {[%clk 0:00:19]} 44. Kf1 {[%clk
0:00:08.8]} 44... Rh1+ {[%clk 0:00:14.8]} 45. Ke2 {[%clk 0:00:10]} 45... Rd2+
{[%clk 0:00:07.9]} 46. Kf3 {[%clk 0:00:11.2]} 46... Rxe1 {[%clk 0:00:07.5]} 47.
Rxg4+ {[%clk 0:00:12]} 47... Kh6 {[%clk 0:00:02.1]} 48. Qxg6# {[%clk 0:00:12.9]}
1-0

[Event "GrandPrix_29.05"]
[Site "Chess.com"]
[Date "2020.05.29"]
[Round "4"]
[White "viktorko131"]
[Black "ZEN-22"]
[Result "1-0"]
[WhiteElo "2195"]
[BlackElo "1996"]
[TimeControl "600+2"]
[EndTime "11:00:27 PDT"]
[Termination "viktorko131 won by checkmate"]

1. e4 {[%clk 0:10:01.9]} 1... d6 {[%clk 0:09:47.6]} 2. d4 {[%clk 0:10:01.7]}
2... Nd7 {[%clk 0:09:44.8]} 3. Nf3 {[%clk 0:10:00.6]} 3... e5 {[%clk 0:09:41]}
4. Nc3 {[%clk 0:10:01]} 4... Ngf6 {[%clk 0:09:41.2]} 5. Bc4 {[%clk 0:10:01.8]}
5... Be7 {[%clk 0:09:42.2]} 6. O-O {[%clk 0:10:02.3]} 6... O-O {[%clk
0:09:43.1]} 7. a4 {[%clk 0:09:58.2]} 7... a5 {[%clk 0:09:43.3]} 8. Re1 {[%clk
0:09:36.3]} 8... c6 {[%clk 0:09:43]} 9. Bb3 {[%clk 0:09:32.1]} 9... exd4 {[%clk
0:09:27]} 10. Nxd4 {[%clk 0:09:22.2]} 10... Nc5 {[%clk 0:09:28.9]} 11. Ba2
{[%clk 0:09:23.5]} 11... Re8 {[%clk 0:09:27.4]} 12. h3 {[%clk 0:08:51.6]} 12...
h6 {[%clk 0:09:20.1]} 13. Bf4 {[%clk 0:08:30.2]} 13... Bf8 {[%clk 0:09:19.1]}
14. Qf3 {[%clk 0:08:22.7]} 14... Ne6 {[%clk 0:08:46]} 15. Be3 {[%clk 0:08:06.8]}
15... Nxd4 {[%clk 0:08:40.7]} 16. Bxd4 {[%clk 0:08:05.9]} 16... Be6 {[%clk
0:08:34.3]} 17. Rad1 {[%clk 0:07:20]} 17... Bxa2 {[%clk 0:08:31]} 18. Nxa2
{[%clk 0:07:19.4]} 18... Nd7 {[%clk 0:08:28.8]} 19. Nc3 {[%clk 0:07:06.9]} 19...
Ne5 {[%clk 0:08:11.9]} 20. Qg3 {[%clk 0:06:53.8]} 20... Ng6 {[%clk 0:08:10.5]}
21. Nb1 {[%clk 0:05:00]} 21... Qd7 {[%clk 0:07:26.9]} 22. Nd2 {[%clk 0:04:44.9]}
22... c5 {[%clk 0:07:24.7]} 23. Bc3 {[%clk 0:04:19.9]} 23... Qxa4 {[%clk
0:07:24.2]} 24. b3 {[%clk 0:04:09.9]} 24... Qc6 {[%clk 0:07:19.7]} 25. Nc4
{[%clk 0:03:31.3]} 25... Rxe4 {[%clk 0:07:13.9]} 26. Nxa5 {[%clk 0:03:03.7]}
26... Rxe1+ {[%clk 0:06:47.6]} 27. Rxe1 {[%clk 0:03:05.2]} 27... Qd5 {[%clk
0:06:44.4]} 28. Nc4 {[%clk 0:03:02]} 28... Qf5 {[%clk 0:06:28.4]} 29. Ne3 {[%clk
0:02:13.5]} 29... Qg5 {[%clk 0:06:11.6]} 30. Qf3 {[%clk 0:02:14.7]} 30... Ra2
{[%clk 0:05:54.2]} 31. Qxb7 {[%clk 0:01:54.4]} 31... Nh4 {[%clk 0:05:32.1]} 32.
Qe4 {[%clk 0:01:17.5]} 32... d5 {[%clk 0:05:13.3]} 33. Qxd5 {[%clk 0:00:56.9]}
33... Qxd5 {[%clk 0:05:12.3]} 34. Nxd5 {[%clk 0:00:58]} 34... Rxc2 {[%clk
0:05:14]} 35. Re8 {[%clk 0:00:57.7]} 35... f6 {[%clk 0:05:07.9]} 36. g3 {[%clk
0:00:26]} 36... Nf3+ {[%clk 0:04:53.2]} 37. Kg2 {[%clk 0:00:26.1]} 37... Nd4
{[%clk 0:04:36.9]} 38. Rb8 {[%clk 0:00:07.9]} 38... Ne2 {[%clk 0:04:25.7]} 39.
Ba5 {[%clk 0:00:07.4]} 39... Kf7 {[%clk 0:04:27]} 40. Rb7+ {[%clk 0:00:06.8]}
40... Ke6 {[%clk 0:04:26.7]} 41. Nc7+ {[%clk 0:00:05.8]} 41... Kf5 {[%clk
0:04:27.3]} 42. Nb5 {[%clk 0:00:02.6]} 42... g5 {[%clk 0:04:25.8]} 43. Rf7
{[%clk 0:00:03.3]} 43... Ra2 {[%clk 0:04:20]} 44. Bb6 {[%clk 0:00:04]} 44... Nd4
{[%clk 0:04:19.3]} 45. Nxd4+ {[%clk 0:00:04.6]} 45... cxd4 {[%clk 0:04:18.8]}
46. Rxf8 {[%clk 0:00:06.2]} 46... d3 {[%clk 0:04:14.4]} 47. Rd8 {[%clk
0:00:07.4]} 47... Rb2 {[%clk 0:04:14.5]} 48. Kf3 {[%clk 0:00:07.9]} 48... Rxb3
{[%clk 0:04:14.9]} 49. Be3 {[%clk 0:00:08.1]} 49... Ke6 {[%clk 0:04:15.9]} 50.
Bd2 {[%clk 0:00:08.6]} 50... f5 {[%clk 0:04:17.3]} 51. Ke3 {[%clk 0:00:09.2]}
51... f4+ {[%clk 0:04:17.7]} 52. gxf4 {[%clk 0:00:10.4]} 52... gxf4+ {[%clk
0:04:18.5]} 53. Kxf4 {[%clk 0:00:11.7]} 53... Ke7 {[%clk 0:04:19.5]} 54. Rd4
{[%clk 0:00:11.4]} 54... h5 {[%clk 0:04:21.4]} 55. Ke3 {[%clk 0:00:12.5]} 55...
Ke6 {[%clk 0:04:21.1]} 56. Rxd3 {[%clk 0:00:13.5]} 56... Rb1 {[%clk 0:04:22.9]}
57. Kf4 {[%clk 0:00:13.4]} 57... Rg1 {[%clk 0:04:22.3]} 58. Rg3 {[%clk
0:00:09.9]} 58... Rd1 {[%clk 0:04:22.5]} 59. Be3 {[%clk 0:00:10.9]} 59... Kf6
{[%clk 0:04:23.4]} 60. Rg8 {[%clk 0:00:08.5]} 60... Rh1 {[%clk 0:04:23.1]} 61.
Rg3 {[%clk 0:00:09.4]} 61... h4 {[%clk 0:04:23.5]} 62. Rf3 {[%clk 0:00:10]}
62... Rb1 {[%clk 0:04:23.2]} 63. Kg4+ {[%clk 0:00:11]} 63... Kg6 {[%clk
0:04:25.1]} 64. Kxh4 {[%clk 0:00:12.4]} 64... Rb4+ {[%clk 0:04:25.5]} 65. Kg3
{[%clk 0:00:12.8]} 65... Rb1 {[%clk 0:04:25.5]} 66. h4 {[%clk 0:00:13.9]} 66...
Kh5 {[%clk 0:04:27.4]} 67. Rf5+ {[%clk 0:00:14.7]} 67... Kg6 {[%clk 0:04:28.8]}
68. Rg5+ {[%clk 0:00:15.4]} 68... Kh7 {[%clk 0:04:30.1]} 69. h5 {[%clk
0:00:16.3]} 69... Rh1 {[%clk 0:04:29.3]} 70. Ra5 {[%clk 0:00:16.9]} 70... Kg7
{[%clk 0:04:29.6]} 71. Kg4 {[%clk 0:00:14]} 71... Rg1+ {[%clk 0:04:29.3]} 72.
Kf5 {[%clk 0:00:14]} 72... Rh1 {[%clk 0:04:30.8]} 73. Ra7+ {[%clk 0:00:14.7]}
73... Kg8 {[%clk 0:04:30.9]} 74. h6 {[%clk 0:00:15.9]} 74... Rg1 {[%clk
0:04:28.7]} 75. Kf6 {[%clk 0:00:14.6]} 75... Kh8 {[%clk 0:04:28.6]} 76. Bg5
{[%clk 0:00:11.1]} 76... Rb1 {[%clk 0:04:22.1]} 77. f4 {[%clk 0:00:11.4]} 77...
Rb6+ {[%clk 0:04:22.2]} 78. Kf5 {[%clk 0:00:11.3]} 78... Kg8 {[%clk 0:04:23.4]}
79. h7+ {[%clk 0:00:10.5]} 79... Kh8 {[%clk 0:04:24.4]} 80. Kg4 {[%clk
0:00:08.8]} 80... Rg6 {[%clk 0:04:24.3]} 81. Ra8+ {[%clk 0:00:04.7]} 81... Kxh7
{[%clk 0:04:24.9]} 82. f5 {[%clk 0:00:06.6]} 82... Rg7 {[%clk 0:04:26]} 83. Kh5
{[%clk 0:00:07]} 83... Rf7 {[%clk 0:04:23.9]} 84. f6 {[%clk 0:00:07.8]} 84...
Rb7 {[%clk 0:04:08.1]} 85. Re8 {[%clk 0:00:08.7]} 85... Rb5 {[%clk 0:04:08.2]}
86. f7 {[%clk 0:00:07.6]} 86... Rf5 {[%clk 0:03:42]} 87. f8=Q {[%clk 0:00:06]}
87... Rxg5+ {[%clk 0:03:42.2]} 88. Kh4 {[%clk 0:00:05]} 88... Rh5+ {[%clk
0:03:40.4]} 89. Kg4 {[%clk 0:00:04.1]} 89... Rg5+ {[%clk 0:03:41.2]} 90. Kf4
{[%clk 0:00:04]} 90... Rf5+ {[%clk 0:03:37.3]} 91. Qxf5+ {[%clk 0:00:04.7]}
91... Kh6 {[%clk 0:03:37.3]} 92. Re6+ {[%clk 0:00:05]} 92... Kg7 {[%clk
0:03:38.2]} 93. Qg6+ {[%clk 0:00:05.9]} 93... Kh8 {[%clk 0:03:40.1]} 94. Re8#
{[%clk 0:00:07.4]} 1-0